[Event "*** Titled Tuesday Blitz"]
[Site "Chess.com"]
[Date "2019.11.05"]
[Round "10"]
[White "pedroholly22"]
[Black "Kimster98"]
[Result "1/2-1/2"]
[WhiteElo "2414"]
[BlackElo "2542"]
[TimeControl "180+2"]
[EndTime "15:24:09 PST"]
[Termination "Game drawn by 50-move rule"]

1. e4 {[%clk 0:03:01.9]} 1... e5 {[%clk 0:03:00.6]} 2. Nf3 {[%clk 0:03:00.9]}
2... Nf6 {[%clk 0:03:02.1]} 3. d4 {[%clk 0:02:59.1]} 3... Nxe4 {[%clk
0:03:02.7]} 4. Nxe5 {[%clk 0:02:54.7]} 4... d6 {[%clk 0:02:56.3]} 5. Nf3 {[%clk
0:02:53.3]} 5... d5 {[%clk 0:02:57.2]} 6. Bd3 {[%clk 0:02:53.7]} 6... Bd6 {[%clk
0:02:53.2]} 7. O-O {[%clk 0:02:53]} 7... O-O {[%clk 0:02:54.2]} 8. c4 {[%clk
0:02:53.6]} 8... c6 {[%clk 0:02:55.7]} 9. Nc3 {[%clk 0:02:54.3]} 9... Nxc3
{[%clk 0:02:53.3]} 10. bxc3 {[%clk 0:02:56.2]} 10... dxc4 {[%clk 0:02:55.2]} 11.
Bxc4 {[%clk 0:02:57.1]} 11... Bf5 {[%clk 0:02:56.8]} 12. Bd3 {[%clk 0:02:57.4]}
12... Bxd3 {[%clk 0:02:57.4]} 13. Qxd3 {[%clk 0:02:59.3]} 13... Nd7 {[%clk
0:02:56.5]} 14. Rb1 {[%clk 0:03:00.8]} 14... b5 {[%clk 0:02:56.9]} 15. c4 {[%clk
0:03:00.7]} 15... bxc4 {[%clk 0:02:54.7]} 16. Qxc4 {[%clk 0:03:02.6]} 16... Qc7
{[%clk 0:02:42.4]} 17. h3 {[%clk 0:02:56]} 17... c5 {[%clk 0:02:33.5]} 18. dxc5
{[%clk 0:02:47.6]} 18... Qxc5 {[%clk 0:02:33.4]} 19. Qxc5 {[%clk 0:02:44.2]}
19... Bxc5 {[%clk 0:02:35.3]} 20. Bb2 {[%clk 0:02:42.4]} 20... Rab8 {[%clk
0:02:28.5]} 21. Rfd1 {[%clk 0:02:38.6]} 21... Nb6 {[%clk 0:02:28.2]} 22. Be5
{[%clk 0:02:28.9]} 22... Rbc8 {[%clk 0:02:27.7]} 23. Rb5 {[%clk 0:02:15]} 23...
f6 {[%clk 0:02:18.7]} 24. Bf4 {[%clk 0:02:13.2]} 24... Be7 {[%clk 0:02:08.5]}
25. a4 {[%clk 0:02:09.1]} 25... Nxa4 {[%clk 0:02:04.6]} 26. Rd7 {[%clk
0:02:08.8]} 26... Rf7 {[%clk 0:02:04.2]} 27. Rxa7 {[%clk 0:02:03.5]} 27... Nc5
{[%clk 0:02:03.7]} 28. Rxe7 {[%clk 0:01:47.6]} 28... Rxe7 {[%clk 0:01:56.7]} 29.
Bd6 {[%clk 0:01:49]} 29... Rb7 {[%clk 0:01:57.3]} 30. Rxc5 {[%clk 0:01:48.9]}
30... Rxc5 {[%clk 0:01:52.6]} 31. Bxc5 {[%clk 0:01:49.4]} 31... Rb1+ {[%clk
0:01:54.5]} 32. Kh2 {[%clk 0:01:49.8]} 32... Kf7 {[%clk 0:01:56.4]} 33. Be3
{[%clk 0:01:50.8]} 33... h5 {[%clk 0:01:55.4]} 34. h4 {[%clk 0:01:46.6]} 34...
Rb4 {[%clk 0:01:54.3]} 35. Kg3 {[%clk 0:01:47.9]} 35... Rg4+ {[%clk 0:01:54.2]}
36. Kh3 {[%clk 0:01:49.3]} 36... Rb4 {[%clk 0:01:55.7]} 37. Nd2 {[%clk
0:01:49.9]} 37... Ra4 {[%clk 0:01:55.5]} 38. g3 {[%clk 0:01:51.1]} 38... Rb4
{[%clk 0:01:55.9]} 39. Nf3 {[%clk 0:01:41.2]} 39... Ra4 {[%clk 0:01:53.2]} 40.
Nd4 {[%clk 0:01:42.6]} 40... Rb4 {[%clk 0:01:52.8]} 41. Ne2 {[%clk 0:01:44.1]}
41... Ra4 {[%clk 0:01:51]} 42. Nf4 {[%clk 0:01:42.3]} 42... g6 {[%clk
0:01:52.2]} 43. Nd3 {[%clk 0:01:43.1]} 43... Ra3 {[%clk 0:01:49.8]} 44. Nc5
{[%clk 0:01:42.6]} 44... Rc3 {[%clk 0:01:38.3]} 45. Kg2 {[%clk 0:01:42.9]} 45...
Rc4 {[%clk 0:01:37.9]} 46. Kf3 {[%clk 0:01:43.5]} 46... g5 {[%clk 0:01:32.7]}
47. hxg5 {[%clk 0:01:38.8]} 47... fxg5 {[%clk 0:01:33.5]} 48. Ne4 {[%clk
0:01:34.6]} 48... g4+ {[%clk 0:01:31.3]} 49. Kf4 {[%clk 0:01:35.5]} 49... Kg6
{[%clk 0:01:30.7]} 50. Ke5 {[%clk 0:01:32.5]} 50... Rc7 {[%clk 0:01:27.8]} 51.
Ke6 {[%clk 0:01:22.1]} 51... Rc6+ {[%clk 0:01:21.9]} 52. Nd6 {[%clk 0:01:22.9]}
52... Ra6 {[%clk 0:01:23.5]} 53. Kd5 {[%clk 0:01:23.2]} 53... Ra5+ {[%clk
0:01:21.1]} 54. Ke6 {[%clk 0:01:13.5]} 54... Ra6 {[%clk 0:01:21.3]} 55. Ke7
{[%clk 0:01:13.7]} 55... Ra3 {[%clk 0:01:17.9]} 56. Nc4 {[%clk 0:01:10.4]} 56...
Rc3 {[%clk 0:01:18.3]} 57. Nd6 {[%clk 0:01:02]} 57... h4 {[%clk 0:01:07.8]} 58.
gxh4 {[%clk 0:01:01.3]} 58... g3 {[%clk 0:01:08.3]} 59. fxg3 {[%clk 0:00:47.2]}
59... Rxe3+ {[%clk 0:01:08.6]} 60. Kd7 {[%clk 0:00:47.9]} 60... Rxg3 {[%clk
0:01:10]} 61. Ke6 {[%clk 0:00:49.3]} 61... Re3+ {[%clk 0:01:10.4]} 62. Kd5
{[%clk 0:00:50.1]} 62... Kh5 {[%clk 0:01:10.9]} 63. Nf5 {[%clk 0:00:50.1]} 63...
Rf3 {[%clk 0:01:11.6]} 64. Ke5 {[%clk 0:00:50.7]} 64... Rf2 {[%clk 0:01:13.2]}
65. Ke4 {[%clk 0:00:51.5]} 65... Kg4 {[%clk 0:01:13.3]} 66. Ne3+ {[%clk
0:00:52.7]} 66... Kxh4 {[%clk 0:01:14.3]} 67. Nf5+ {[%clk 0:00:54.6]} 67... Kg5
{[%clk 0:01:15.3]} 68. Ne3 {[%clk 0:00:55.9]} 68... Rf4+ {[%clk 0:01:16.4]} 69.
Ke5 {[%clk 0:00:57]} 69... Ra4 {[%clk 0:01:18.1]} 70. Kd5 {[%clk 0:00:58.2]}
70... Kf4 {[%clk 0:01:18.4]} 71. Ng2+ {[%clk 0:00:59.4]} 71... Kf3 {[%clk
0:01:18.6]} 72. Ne1+ {[%clk 0:01:00.1]} 72... Ke2 {[%clk 0:01:14.6]} 73. Nc2
{[%clk 0:01:00.9]} 73... Kd3 {[%clk 0:01:16]} 74. Ne1+ {[%clk 0:00:58.8]} 74...
Kd2 {[%clk 0:01:04.6]} 75. Nf3+ {[%clk 0:00:58.2]} 75... Ke3 {[%clk 0:01:06.2]}
76. Ne5 {[%clk 0:00:59.2]} 76... Ra5+ {[%clk 0:01:07.8]} 77. Kd6 {[%clk
0:00:59.2]} 77... Ke4 {[%clk 0:01:08.6]} 78. Nc6 {[%clk 0:01:00.1]} 78... Rh5
{[%clk 0:01:06.7]} 79. Nb4 {[%clk 0:00:55.5]} 79... Kd4 {[%clk 0:01:04.3]} 80.
Nc6+ {[%clk 0:00:56.1]} 80... Kc4 {[%clk 0:01:05.9]} 81. Ne5+ {[%clk 0:00:57.1]}
81... Kb5 {[%clk 0:01:07.1]} 82. Kd5 {[%clk 0:00:58.2]} 82... Rh1 {[%clk
0:01:06.4]} 83. Nf3 {[%clk 0:00:57.3]} 83... Rd1+ {[%clk 0:01:06.8]} 84. Ke4
{[%clk 0:00:57.9]} 84... Kc4 {[%clk 0:01:08]} 85. Ne5+ {[%clk 0:00:59]} 85...
Kc3 {[%clk 0:01:09.1]} 86. Nf3 {[%clk 0:00:59.7]} 86... Rd8 {[%clk 0:01:10.5]}
87. Ne5 {[%clk 0:00:59.5]} 87... Rd4+ {[%clk 0:01:11.7]} 88. Ke3 {[%clk
0:01:00.3]} 88... Ra4 {[%clk 0:01:11]} 89. Nf3 {[%clk 0:01:00.7]} 89... Kc4
{[%clk 0:01:11.3]} 90. Nd2+ {[%clk 0:00:59.4]} 90... Kd5 {[%clk 0:01:12.2]} 91.
Nf3 {[%clk 0:00:58.9]} 91... Re4+ {[%clk 0:01:11.9]} 92. Kd3 {[%clk 0:00:59.3]}
92... Re7 {[%clk 0:01:13.8]} 93. Nd2 {[%clk 0:00:59.6]} 93... Rh7 {[%clk
0:01:13.9]} 94. Nf3 {[%clk 0:00:59.9]} 94... Ra7 {[%clk 0:01:13.5]} 95. Ke3
{[%clk 0:01:00.6]} 95... Ra3+ {[%clk 0:01:15.4]} 96. Kf4 {[%clk 0:01:01.8]}
96... Rd3 {[%clk 0:01:15.5]} 97. Ne1 {[%clk 0:01:01.6]} 97... Rc3 {[%clk
0:01:16.4]} 98. Nf3 {[%clk 0:01:02.5]} 98... Ke6 {[%clk 0:01:17.5]} 99. Ng5+
{[%clk 0:01:02]} 99... Kd5 {[%clk 0:01:15.7]} 100. Nf3 {[%clk 0:01:01.6]} 100...
Rc8 {[%clk 0:01:16.6]} 101. Ke3 {[%clk 0:01:00.2]} 101... Rf8 {[%clk 0:01:18.2]}
102. Ng5 {[%clk 0:00:58.4]} 102... Ke5 {[%clk 0:01:18.1]} 103. Nf3+ {[%clk
0:00:59.2]} 103... Kf5 {[%clk 0:01:19.5]} 104. Nd4+ {[%clk 0:00:56.4]} 104...
Kg4 {[%clk 0:01:20.7]} 105. Ke4 {[%clk 0:00:57.9]} 105... Re8+ {[%clk 0:01:22]}
106. Kd3 {[%clk 0:00:57.5]} 106... Kf4 {[%clk 0:01:22.6]} 107. Ne2+ {[%clk
0:00:58.7]} 107... Ke5 {[%clk 0:01:23]} 108. Ke3 {[%clk 0:00:59.7]} 108... Ra8
{[%clk 0:01:19.7]} 109. Kd3 {[%clk 0:00:56.4]} 109... Ra7 {[%clk 0:01:17.5]}
110. Nc3 {[%clk 0:00:57.2]} 110... Ra5 {[%clk 0:01:18.2]} 111. Ne2 {[%clk
0:00:57.2]} 111... Ra4 {[%clk 0:01:19]} 112. Nc3 {[%clk 0:00:58.2]} 112... Rd4+
{[%clk 0:01:20.5]} 113. Ke3 {[%clk 0:00:59.2]} 113... Rh4 {[%clk 0:01:21.1]}
114. Ne2 {[%clk 0:00:59]} 114... Rh3+ {[%clk 0:01:21.5]} 115. Kf2 {[%clk
0:00:57.8]} 115... Ke4 {[%clk 0:01:22.2]} 116. Ng3+ {[%clk 0:00:58.4]} 116...
Kf4 {[%clk 0:01:21.9]} 1/2-1/2